bitfinex-derivatives/quotes_SOLF0:USTF0_20250321
["timestamp","ask_amount","ask_price","bid_price","bid_amount"]
[1742548999652,1.60524285,128.93,128.91,295.98773746]
[1742549000146,9.36534285,128.93,128.91,303.74863746]
[1742549000452,1.60524285,128.93,128.91,27.98]
[1742549001246,7.7604,128.92,128.91,27.98]
[1742549001447,1.60524285,128.93,128.91,27.98]
[1742549001953,7.7604,128.92,128.91,27.98]
[1742549002552,7.7604,128.92,128.9,19.68913746]
[1742549003251,9.36544285,128.93,128.91,7.761]
[1742549003444,1.60524285,128.93,128.9,11.92773746]
[1742549004054,7.7604,128.92,128.9,19.68893746]
[1742549005750,1.60524285,128.93,128.9,11.92773746]
[1742549005950,1.60524285,128.93,128.92,11.92773746]
[1742549006355,9.36504285,128.93,128.92,11.92773746]
[1742549006551,9.36504285,128.93,128.9,47.62913746]
[1742549006755,1.60524285,128.93,128.9,47.62913746]
[1742549006950,9.36544285,128.93,128.9,47.62913746]
[1742549007355,9.36544285,128.93,128.91,7.7608]
[1742549010454,7.7605,128.92,128.9,47.62903746]
[1742549011052,29.50524285,128.93,128.89,0.05454434]
[1742549011250,2.0026,128.92,128.89,0.05454434]
[1742549012351,7.7614,128.91,128.89,7.81674434]
[1742549012655,2.0026,128.92,128.89,0.05454434]
[1742549012858,7.7616,128.9,128.89,0.05454434]
[1742549014055,27.88,128.9,128.84,19.69263746]
[1742549014360,11.92773746,128.89,128.84,11.92773746]
[1742549014557,7.7643,128.86,128.84,11.92773746]
[1742549014749,27.88,128.9,128.84,11.92773746]
[1742549015060,7.7639,128.87,128.84,11.92773746]
[1742549015360,7.7639,128.87,128.86,0.05750624]
[1742549015654,0.05158938,128.88,128.86,0.05750624]
[1742549016353,0.05158938,128.88,128.87,11.92773746]
[1742549017060,0.05158938,128.88,128.87,19.69113746]
[1742549021461,0.05158938,128.88,128.87,11.92773746]
[1742549021859,0.05158938,128.88,128.86,0.05750624]
[1742549022563,7.7634,128.87,128.86,0.05750624]
[1742549027163,7.7634,128.87,128.86,11.9852437]
[1742549029065,0.05158938,128.88,128.86,39.8652437]
[1742549029966,0.05158938,128.88,128.87,7.7634]
[1742549030864,0.05158938,128.88,128.86,47.6289437]
[1742549031460,0.05158938,128.88,128.87,7.7634]
[1742549034962,0.05158938,128.88,128.86,47.6289437]
[1742549035268,0.05158938,128.88,128.86,39.8652437]
[1742549036472,0.05158938,128.88,128.87,7.7634]
[1742549037470,0.05158938,128.88,128.86,47.6290437]
[1742549037670,0.05158938,128.88,128.86,39.8652437]
[1742549038273,0.05158938,128.88,128.87,7.7634]
[1742549039069,7.81468938,128.88,128.86,47.6291437]
[1742549039368,0.05158938,128.88,128.86,39.8852437]
[1742549039573,0.05158938,128.88,128.86,11.9852437]
[1742549039762,0.05158938,128.88,128.86,0.05750624]
[1742549040374,7.7634,128.87,128.86,0.05750624]
[1742549040972,7.7634,128.87,128.86,11.9852437]
[1742549041274,7.81478938,128.88,128.86,11.9852437]
[1742549041477,0.05158938,128.88,128.86,11.9852437]
[1742549042069,0.05158938,128.88,128.87,7.7634]
[1742549042274,0.05158938,128.88,128.86,11.9852437]
[1742549042475,7.7634,128.87,128.86,19.7492437]
[1742549043169,7.81478938,128.88,128.86,19.7492437]
[1742549044775,0.05158938,128.88,128.87,7.7634]
[1742549045272,0.05158938,128.88,128.86,11.9852437]
[1742549045478,7.7634,128.87,128.86,11.9852437]
[1742549046679,0.05158938,128.88,128.86,11.9852437]
[1742549047180,7.81438938,128.88,128.86,19.7489437]
[1742549049681,0.05158938,128.88,128.87,7.7634]
[1742549050079,0.05158938,128.88,128.87,35.6034]
[1742549056888,0.05158938,128.88,128.87,291.7234]
[1742549057490,9.36534285,128.93,128.91,7.7606]
[1742549057691,1.60524285,128.93,128.91,35.5406]
[1742549057992,1.60524285,128.93,128.92,7.7604]
[1742549058895,1.60524285,128.93,128.92,19.68813746]
[1742549060488,0.05202104,128.94,128.93,7.7598]
[1742549060688,1.67799089,128.95,128.93,7.7598]
[1742549060689,1.64414512,128.97,128.93,256.1]
[1742549060888,1.64414512,128.97,128.96,11.92773746]
[1742549061098,1.64414512,128.97,128.96,19.68573746]
[1742549061295,9.40154512,128.97,128.95,11.92773746]
[1742549061700,1.64414512,128.97,128.95,11.92773746]
[1742549061896,1.70305835,128.97,128.95,11.98539081]
[1742549063303,9.46065835,128.97,128.95,11.98539081]
[1742549064396,7.758,128.96,128.95,11.98539081]
[1742549065504,9.46075835,128.97,128.95,11.98539081]
[1742549066799,7.758,128.96,128.95,11.98539081]
[1742549067198,7.758,128.96,128.95,0.05765335]
[1742549070000,7.758,128.96,128.95,11.98539081]
[1742549070406,1.70305835,128.97,128.95,11.98539081]
[1742549070599,1.70305835,128.97,128.95,19.74399081]
[1742549071399,1.70305835,128.97,128.96,7.758]
[1742549072004,1.70305835,128.97,128.95,19.74359081]
[1742549072407,9.46045835,128.97,128.95,19.74359081]
[1742549072806,1.70305835,128.97,128.95,11.98539081]
[1742549073402,1.70305835,128.97,128.95,19.74349081]
[1742549074197,9.46045835,128.97,128.95,19.74349081]
[1742549077403,1.70305835,128.97,128.95,19.74349081]
[1742549078705,9.46055835,128.97,128.95,19.74349081]
[1742549079305,1.70305835,128.97,128.96,7.758]
[1742549081211,1.70305835,128.97,128.95,19.74369081]
[1742549081604,1.70305835,128.97,128.95,11.98539081]
[1742549081805,1.70305835,128.97,128.96,7.758]
[1742549082005,1.70305835,128.97,128.95,11.98539081]
[1742549082305,1.70305835,128.97,128.95,19.74369081]
[1742549083213,1.70305835,128.97,128.96,7.758]
[1742549084813,1.70305835,128.97,128.95,19.74369081]
[1742549085212,1.70305835,128.97,128.95,11.98539081]
[1742549085614,1.70305835,128.97,128.96,7.758]
[1742549098823,1.70305835,128.97,128.95,19.74369081]
[1742549099825,1.70305835,128.97,128.96,7.758]
[1742549100227,1.70305835,128.97,128.95,11.98539081]
[1742549100427,1.70305835,128.97,128.95,0.05765335]
[1742549100824,7.758,128.96,128.95,0.05765335]
[1742549105032,11.46935835,128.97,128.95,0.05765335]
[1742549105328,9.46085835,128.97,128.95,19.74349081]
[1742549105627,1.70305835,128.97,128.95,11.98539081]
[1742549106425,9.46085835,128.97,128.95,11.98539081]
[1742549106828,9.46085835,128.97,128.95,19.74369081]
[1742549107427,9.46085835,128.97,128.95,11.98539081]
[1742549107829,7.758,128.96,128.95,11.98539081]
[1742549109929,1.70305835,128.97,128.95,11.98539081]
[1742549110432,1.70305835,128.97,128.96,7.758]
[1742549112237,1.70305835,128.97,128.95,19.74369081]
[1742549112636,1.70305835,128.97,128.95,11.98539081]
[1742549113032,1.70305835,128.97,128.96,7.758]
[1742549115838,1.59297909,128.99,128.98,7.7568]
[1742549116038,1.59297909,128.99,128.98,47.28453746]
[1742549117144,1.67811482,129.01,128.98,39.52773746]
[1742549117438,1.63895766,129.06,129.0,11.92773746]
[1742549117739,1.63895766,129.06,129.03,19.68153746]
[1742549117740,9.39125766,129.06,129.03,19.68153746]
[1742549118242,7.7527,129.05,129.03,11.92773746]
[1742549119447,7.7527,129.05,129.03,19.68153746]
[1742549119642,7.7527,129.05,129.03,11.92773746]
[1742549120038,1.63895766,129.06,129.03,19.68153746]
[1742549121439,1.63895766,129.06,129.03,11.92773746]
[1742549121845,7.7529,129.05,129.03,11.92773746]
[1742549122040,7.7529,129.05,129.03,19.68153746]
[1742549122245,1.63895766,129.06,129.03,19.68153746]
[1742549122944,9.39145766,129.06,129.03,19.68153746]
[1742549123249,1.63895766,129.06,129.03,11.92773746]
[1742549123445,7.7528,129.05,129.03,11.92773746]
[1742549123647,1.63895766,129.06,129.03,11.92773746]
[1742549124547,7.753,129.05,129.03,11.92773746]
[1742549124954,1.63895766,129.06,129.03,19.68153746]
[1742549129554,9.39125766,129.06,129.03,19.68153746]
[1742549129751,1.63895766,129.06,129.03,19.68153746]
[1742549130151,1.63895766,129.06,129.05,7.7526]
[1742549130451,1.63053913,129.08,129.05,295.38773746]
[1742549130656,1.6819345,129.1,129.07,19.67883746]
[1742549130955,1.6819345,129.1,129.07,11.92773746]
[1742549131151,7.7505,129.09,129.07,11.97689849]
[1742549131359,1.6819345,129.1,129.07,11.97689849]
[1742549132148,29.3419345,129.1,129.07,0.04916103]
[1742549132349,37.0920345,129.1,129.07,0.04916103]
[1742549133060,7.7505,129.09,129.07,0.04916103]
[1742549133247,29.3419345,129.1,129.07,0.04916103]
[1742549133653,7.7506,129.09,129.07,0.04916103]
[1742549134361,7.7508,129.08,129.07,0.04916103]
[1742549135060,7.752,129.06,129.05,255.84]
[1742549135868,35.4517,129.07,129.05,255.84]
[1742549136164,27.7,129.07,129.05,255.89243714]
[1742549137157,7.752,129.06,129.05,255.89243714]
[1742549139064,35.4517,129.07,129.05,255.89243714]
[1742549139261,27.7,129.07,129.05,255.89243714]
[1742549139467,7.752,129.06,129.05,255.89243714]
[1742549139669,7.752,129.06,129.05,0.05243714]
[1742549143966,7.752,129.06,129.05,3.714e-05]
[1742549144169,19.67973746,129.06,129.05,3.714e-05]
[1742549144975,7.752,129.06,129.05,11.9277746]
[1742549145272,0.05014488,129.09,129.05,11.9277746]
[1742549146078,0.05014488,129.09,129.05,19.6802746]
[1742549146374,0.05014488,129.09,129.05,11.9277746]
[1742549146572,0.05014488,129.09,129.07,11.92773746]
[1742549147466,0.05014488,129.09,129.07,19.67903746]
[1742549147676,0.05014488,129.09,129.07,11.92773746]
[1742549147868,0.05014488,129.09,129.08,7.7508]
[1742549154177,0.05014488,129.09,129.08,35.4108]
[1742549155072,0.05014488,129.09,129.08,27.66]
[1742549155777,0.05014488,129.09,129.08,35.4108]
[1742549157174,0.05014488,129.09,129.08,7.7508]
[1742549159079,0.05014488,129.09,129.07,11.92773746]
[1742549159680,7.7512,129.08,129.06,303.11943746]
[1742549160078,7.7512,129.08,129.06,267.72773746]
[1742549160582,11.97788234,129.09,129.05,3.714e-05]
[1742549161379,7.752,129.06,129.05,3.714e-05]
[1742549163178,11.97788234,129.09,129.05,3.714e-05]
[1742549163179,0.05014488,129.09,129.05,3.714e-05]
[1742549163684,7.80094488,129.09,129.06,19.67973746]
[1742549164086,0.05014488,129.09,129.06,11.92773746]
[1742549164387,7.80054488,129.09,129.06,11.92773746]
[1742549164582,0.05014488,129.09,129.06,11.92773746]
[1742549164780,0.05014488,129.09,129.07,7.7511]
[1742549164981,7.80064488,129.09,129.07,7.7511]
[1742549175991,0.05014488,129.09,129.06,11.92773746]
[1742549176791,7.7508,129.08,129.06,11.92773746]
[1742549177597,7.7514,129.07,129.06,11.92773746]
[1742549185409,7.752,129.06,129.05,3.714e-05]
[1742549190914,7.752,129.06,129.05,3.714e-05]
[1742549192107,7.7517,129.07,129.05,3.714e-05]
[1742549192314,27.58,129.08,129.05,11.9277746]
[1742549193113,7.7514,129.07,129.05,11.9277746]
[1742549194113,7.752,129.06,129.05,3.714e-05]
[1742549194311,19.67973746,129.06,129.05,3.714e-05]
[1742549196119,27.41973746,129.06,129.05,3.714e-05]
[1742549198217,19.67973746,129.06,129.05,3.714e-05]
[1742549198515,14.0157,129.07,129.05,3.714e-05]
[1742549198720,0.05014488,129.09,129.06,11.92773746]
[1742549198916,0.05014488,129.09,129.07,11.92773746]
[1742549199116,7.80064488,129.09,129.07,19.67913746]
[1742549200527,7.80064488,129.09,129.07,11.92773746]
[1742549200819,7.7508,129.08,129.07,11.92773746]
[1742549201921,7.80064488,129.09,129.07,11.92773746]
[1742549203214,7.80064488,129.09,129.07,19.67913746]
[1742549203724,7.80064488,129.09,129.08,11.92773746]
[1742549203918,9.4317345,129.1,129.08,19.67853746]
[1742549204117,9.4317345,129.1,129.09,11.92773746]
[1742549204418,1.6819345,129.1,129.09,11.92773746]
[1742549205322,0.05463552,129.11,129.09,39.52773746]
[1742549205522,0.05463552,129.11,129.1,11.92773746]
[1742549205725,0.05463552,129.11,129.1,19.67733746]
[1742549207225,0.05463552,129.11,129.1,26.30553391]
[1742549208722,0.05463552,129.11,129.1,18.55593391]
[1742549210124,7.80363552,129.11,129.09,27.6]
[1742549211825,7.80363552,129.11,129.09,35.3502]
[1742549212020,7.80363552,129.11,129.09,27.6]
[1742549212724,0.05463552,129.11,129.09,27.6]
[1742549213029,7.80373552,129.11,129.09,35.3499]
[1742549213426,0.05463552,129.11,129.09,27.6]
[1742549213622,0.05463552,129.11,129.08,0.05200776]
[1742549214225,7.7502,129.09,129.08,0.05200776]
[1742549221126,46.13593391,129.1,129.01,7.7547]
[1742549221423,20.69953391,129.08,128.99,283.36]
[1742549221625,7.7555,129.01,128.99,255.74]
[1742549221822,18.55593391,129.06,128.99,255.74]
[1742549222221,46.17593391,129.07,128.99,263.4962]
[1742549222422,0.05636198,129.04,129.01,0.05746461]
[1742549223534,7.7541,129.03,129.01,0.05746461]
[1742549223930,0.05636198,129.04,129.01,0.05746461]
[1742549224131,7.80976198,129.04,129.01,0.05746461]
[1742549224330,0.05636198,129.04,129.01,0.05746461]
[1742549224829,7.7538,129.03,129.01,0.05746461]
[1742549225530,27.67636198,129.04,129.01,0.05746461]
[1742549225731,18.55593391,129.03,128.95,46.19593391]
[1742549225937,22.80983391,129.03,128.95,35.3984]
[1742549226241,22.80983391,129.03,128.95,27.64]
[1742549226431,22.80983391,129.03,128.96,7.7576]
[1742549226624,7.756,129.0,128.95,46.19593391]
[1742549226827,7.756,129.0,128.98,0.05953107]
[1742549228229,7.756,129.0,128.98,7.81613107]
[1742549228433,7.756,129.0,128.98,0.05953107]
[1742549229023,7.7562,128.99,128.98,0.05953107]
[1742549230131,46.27424809,129.01,128.93,255.8]
[1742549230436,18.55593391,128.99,128.93,255.8]
[1742549230630,2.0977,128.98,128.93,255.8]
[1742549230830,27.68,128.97,128.93,255.8]
[1742549231329,0.05571278,128.96,128.94,0.05201788]
[1742549231531,0.05571278,128.96,128.88,29.27172608]
[1742549231727,2.0444,128.96,128.88,29.27172608]
[1742549232625,2.0444,128.96,128.9,7.7612]
[1742549232829,0.05379115,128.93,128.91,0.05097514]
[1742549236636,0.05379115,128.93,128.91,7.81187514]
[1742549237342,0.05379115,128.93,128.92,7.7604]
[1742549237636,0.05379115,128.93,128.91,0.05097514]
[1742549237939,0.05379115,128.93,128.92,7.7604]
[1742549240241,0.05379115,128.93,128.91,7.81167514]
[1742549240437,0.05379115,128.93,128.91,0.05097514]
[1742549241339,0.05379115,128.93,128.91,7.81147514]
[1742549241837,0.05379115,128.93,128.91,27.71097514]
[1742549242034,0.05379115,128.93,128.92,7.7604]
[1742549244942,0.05379115,128.93,128.91,35.47167514]
[1742549245538,0.05379115,128.93,128.91,0.05097514]
[1742549245941,7.81389115,128.93,128.91,0.05097514]
[1742549246238,0.05379115,128.93,128.91,0.05097514]
[1742549246544,7.7604,128.92,128.91,0.05097514]
[1742549248142,27.71379115,128.93,128.86,291.3038]
[1742549248339,4.1302,128.92,128.86,291.3038]
[1742549248942,7.7625,128.89,128.86,291.3038]
[1742549249241,0.05466159,128.89,128.86,283.5895366]
[1742549249645,7.7631,128.88,128.86,283.5895366]
[1742549249843,0.05466159,128.89,128.86,291.3533366]
[1742549250347,0.05466159,128.89,128.86,255.9295366]
[1742549251449,7.7632,128.88,128.86,255.9295366]
[1742549251939,7.7634,128.87,128.86,255.9295366]
[1742549252144,7.7634,128.87,128.86,0.0495366]
[1742549253445,7.7632,128.88,128.86,0.0495366]
[1742549254244,7.7634,128.87,128.86,0.0495366]
[1742549256150,0.05466159,128.89,128.86,0.0495366]
[1742549256955,7.81736159,128.89,128.86,7.8132366]
[1742549257153,0.05466159,128.89,128.86,0.0495366]
[1742549257361,0.05466159,128.89,128.88,18.55593391]
[1742549257649,0.05466159,128.89,128.88,26.31873391]
[1742549259658,6.1818,128.97,128.93,7.7593]
[1742549259859,28.46,128.95,128.9,28.46]
[1742549260055,7.7608,128.92,128.88,303.15593391]
[1742549260259,28.46,128.95,128.88,303.15593391]
[1742549260661,7.7611,128.91,128.88,303.15593391]
[1742549260858,7.7611,128.91,128.9,0.05094066]
[1742549261462,7.7607,128.92,128.9,0.05094066]
[1742549261662,0.04937432,128.93,128.9,0.05094066]
[1742549262458,7.761,128.91,128.9,0.05094066]
[1742549268066,36.2206,128.92,128.9,0.05094066]
[1742549268759,7.761,128.91,128.9,0.05094066]
[1742549269157,0.04937432,128.93,128.9,0.05094066]
[1742549270569,7.761,128.91,128.9,0.05094066]
[1742549271873,7.7607,128.92,128.9,0.05094066]
[1742549272269,7.7607,128.92,128.9,7.81224066]
[1742549272465,7.80957432,128.93,128.9,0.05094066]
[1742549272973,7.80957432,128.93,128.91,7.7606]
[1742549274474,0.04937432,128.93,128.91,7.7606]
[1742549275272,7.80957432,128.93,128.91,7.7606]
[1742549275774,7.7607,128.92,128.9,19.72843989]
[1742549280476,7.761,128.91,128.9,0.05094066]
[1742549282976,47.91719923,128.91,128.9,4.066e-05]
[1742549288983,7.7655,128.84,128.83,11.91619923]
[1742549289182,40.11619923,128.87,128.82,256.1]
[1742549289487,40.11619923,128.87,128.8,42.86316869]
[1742549289488,11.91619923,128.85,128.8,42.86316869]
[1742549289688,11.91619923,128.85,128.8,38.99579217]
[1742549290188,0.05728435,128.84,128.81,0.05919842]
[1742549291586,7.7664,128.82,128.81,0.05919842]
[1742549292788,19.68259923,128.82,128.81,0.05919842]
[1742549292985,7.7689,128.78,128.76,2.1151]
[1742549293190,11.91619923,128.82,128.76,2.1151]
[1742549293386,28.3,128.81,128.76,2.1151]
[1742549293586,7.7686,128.79,128.76,9.8849]
[1742549294385,7.82581607,128.79,128.76,9.94411417]
[1742549294991,7.82581607,128.79,128.76,7.82901417]
[1742549295288,0.05721607,128.79,128.76,11.9754134]
[1742549295791,0.05721607,128.79,128.77,11.91619923]
[1742549296089,0.05721607,128.79,128.77,19.68519923]
[1742549296287,0.05721607,128.79,128.76,0.05921417]
[1742549296288,0.05721607,128.79,128.78,11.91619923]
[1742549296589,0.05721607,128.79,128.78,19.68509923]
[1742549296790,0.05721607,128.79,128.78,7.7689]
[1742549296982,0.05721607,128.79,128.76,11.9754134]
[1742549297180,0.05721607,128.79,128.77,7.7692]
[1742549298188,0.05721607,128.79,128.76,11.9754134]
[1742549298390,0.05721607,128.79,128.76,0.05921417]
[1742549299394,7.82571607,128.79,128.77,7.7691]
[1742549299898,0.05721607,128.79,128.76,0.05921417]
[1742549300594,7.7695,128.77,128.76,0.05921417]
[1742549301392,0.05721607,128.79,128.76,0.05921417]
[1742549301593,0.05721607,128.79,128.76,7.82901417]
[1742549301795,7.7691,128.78,128.76,7.82901417]
[1742549302395,7.82561607,128.79,128.77,7.7695]
[1742549302896,0.05721607,128.79,128.76,0.05921417]
[1742549303399,7.7689,128.78,128.76,7.82891417]
[1742549303597,0.05721607,128.79,128.76,7.82891417]
[1742549303798,0.05721607,128.79,128.76,0.05921417]
[1742549303998,0.05721607,128.79,128.78,7.7689]
[1742549304198,0.05721607,128.79,128.76,0.05921417]
[1742549304904,7.82551607,128.79,128.77,7.7691]
[1742549305897,7.82551607,128.79,128.76,7.82901417]
[1742549307104,7.7692,128.78,128.76,7.82901417]
[1742549307701,7.82571607,128.79,128.76,7.82901417]
[1742549308305,7.82571607,128.79,128.77,7.7694]
[1742549308799,1.35161378,128.87,128.78,18.66081362]
[1742549309000,6.117,128.89,128.8,18.66081362]
[1742549309194,6.117,128.89,128.81,28.26]
[1742549309506,46.92081362,128.88,128.79,30.2761]
[1742549309704,18.66081362,128.86,128.78,256.32]
[1742549309896,7.7669,128.82,128.78,256.32]
[1742549310102,7.7669,128.82,128.81,0.05120986]
[1742549310401,0.04926485,128.83,128.81,0.05120986]
[1742549310704,7.81546485,128.83,128.81,0.05120986]
[1742549311607,7.7664,128.82,128.81,0.05120986]
[1742549312307,0.04926485,128.83,128.81,7.81790986]
[1742549312504,0.04926485,128.83,128.81,0.05120986]
[1742549313002,0.04926485,128.83,128.82,7.7664]
[1742549315812,0.04926485,128.83,128.82,26.42721362]
[1742549319207,0.04926485,128.83,128.82,19.69494741]
[1742549320213,0.04926485,128.83,128.82,7.7664]
[1742549320514,0.04926485,128.83,128.81,0.05120986]
[1742549321313,7.7664,128.82,128.81,0.05120986]
[1742549322912,19.69494741,128.82,128.81,0.05120986]
[1742549323108,7.7664,128.82,128.81,0.05120986]
[1742549324009,7.7686,128.79,128.76,9.8606]
[1742549324315,7.7686,128.79,128.76,36.0298]
[1742549324513,28.26,128.82,128.77,7.7694]
[1742549324716,7.7679,128.8,128.77,7.7694]
[1742549325315,0.0523192,128.8,128.78,7.7688]
[1742549326214,7.8201192,128.8,128.78,7.7688]
[1742549328515,0.0523192,128.8,128.79,36.0283]
[1742549328819,7.8200192,128.8,128.79,28.26]
[1742549330016,7.7685,128.79,128.77,28.28919584]
[1742549330420,7.7685,128.79,128.77,36.05859584]
[1742549333423,7.8203192,128.8,128.77,36.05859584]
[1742549333722,0.0523192,128.8,128.77,36.05859584]
[1742549334117,7.7683,128.79,128.77,36.05859584]
[1742549334622,0.0523192,128.8,128.77,36.05859584]
[1742549334823,7.8203192,128.8,128.78,7.7687]
[1742549335822,7.7684,128.79,128.77,36.05839584]
[1742549336425,7.7689,128.78,128.77,28.28919584]
[1742549336725,0.0523192,128.8,128.77,28.28919584]
[1742549337117,7.8202192,128.8,128.77,28.28919584]
[1742549337721,7.8202192,128.8,128.78,7.7688]
[1742549338024,7.7685,128.79,128.77,28.28919584]
[1742549338227,7.7685,128.79,128.77,0.04919584]
[1742549338426,7.7685,128.79,128.77,7.81839584]
[1742549338926,7.7685,128.79,128.77,0.04919584]
[1742549340523,7.7689,128.78,128.77,0.04919584]
[1742549345639,19.71350839,128.78,128.77,0.04919584]
[1742549346645,7.7689,128.78,128.77,0.04919584]
[1742549347734,0.0523192,128.8,128.77,0.04919584]
[1742549347934,0.0523192,128.8,128.78,11.94460839]
[1742549348139,0.0523192,128.8,128.77,0.04919584]
[1742549348439,7.8203192,128.8,128.78,28.18]
[1742549349037,0.0523192,128.8,128.78,40.12460839]
[1742549349232,0.0523192,128.8,128.78,47.89320839]
[1742549349438,0.0523192,128.8,128.78,40.12460839]
[1742549350343,7.8200192,128.8,128.78,40.12460839]
[1742549350943,7.8200192,128.8,128.78,28.18]
[1742549351446,7.7683,128.79,128.78,28.18]
[1742549351636,7.7683,128.79,128.77,0.04919584]
[1742549351841,7.7683,128.79,128.77,7.81839584]
[1742549352844,7.8203192,128.8,128.77,7.81839584]
[1742549353244,7.8203192,128.8,128.78,7.7688]
[1742549353845,0.0523192,128.8,128.78,7.7689]
[1742549354842,7.8201192,128.8,128.78,7.7689]
[1742549355545,0.0523192,128.8,128.77,0.04919584]
[1742549356547,7.8202192,128.8,128.78,7.7686]
[1742549356846,7.8202192,128.8,128.77,0.04919584]
[1742549357448,7.8202192,128.8,128.77,7.81829584]
[1742549358848,7.8202192,128.8,128.78,7.7688]
[1742549359650,0.0523192,128.8,128.78,7.7688]
[1742549360349,7.8202192,128.8,128.78,7.7688]
[1742549362553,7.8202192,128.8,128.77,7.81829584]
[1742549363152,7.8202192,128.8,128.78,7.7688]
[1742549364248,7.8202192,128.8,128.77,7.81839584]
[1742549364546,0.0523192,128.8,128.77,7.81839584]
[1742549364955,0.0523192,128.8,128.78,7.7689]
[1742549367760,0.0523192,128.8,128.79,7.7683]
[1742549374259,7.8200192,128.8,128.78,7.7686]
[1742549375463,7.8200192,128.8,128.79,7.7683]
[1742549376463,0.0523192,128.8,128.79,7.7683]
[1742549377559,0.0523192,128.8,128.79,35.6683]
[1742549383067,7.8200192,128.8,128.79,27.9]
[1742549386478,7.8200192,128.8,128.79,35.6683]
[1742549386670,0.0523192,128.8,128.79,35.6683]
[1742549388980,7.8200192,128.8,128.79,27.9]
[1742549397780,7.8200192,128.8,128.77,35.53829584]
[1742549398380,7.7684,128.79,128.77,35.53829584]
[1742549400181,7.7684,128.79,128.78,7.7689]
[1742549400381,7.8203192,128.8,128.78,19.71350839]
[1742549401181,7.8203192,128.8,128.78,11.94460839]
[1742549401679,0.0523192,128.8,128.77,27.76919584]
[1742549401873,11.94460839,128.79,128.77,0.04919584]
[1742549402081,7.7719,128.73,128.72,11.94460839]
[1742549402282,7.7719,128.73,128.71,70.60316869]
[1742549402483,11.94460839,128.76,128.71,70.60316869]
[1742549402786,7.7725,128.72,128.71,70.60316869]
[1742549404479,7.7725,128.72,128.71,42.86316869]
[1742549404685,7.82524468,128.73,128.71,42.86316869]
[1742549405790,7.82524468,128.73,128.7,11.99421844]
[1742549406391,11.99765307,128.73,128.7,0.04961005]
[1742549406592,11.94460839,128.72,128.7,0.04961005]
[1742549407187,39.70460839,128.72,128.7,0.04961005]
[1742549407388,7.7731,128.71,128.7,0.04961005]
[1742549409694,19.71770839,128.71,128.7,0.04961005]
[1742549413694,11.94460839,128.71,128.7,0.04961005]
[1742549414292,35.5328,128.72,128.7,7.82331005]
[1742549414487,27.76,128.72,128.7,7.82331005]
[1742549414793,35.5325,128.72,128.7,7.82331005]
[1742549414994,27.76,128.72,128.7,7.82331005]
[1742549415296,16.07895307,128.73,128.71,7.7731]
[1742549415492,43.81895307,128.73,128.7,0.04961005]
[1742549416093,7.7727,128.72,128.7,0.04961005]
[1742549416586,43.81895307,128.73,128.7,7.82311005]
[1742549416985,39.73765307,128.73,128.7,7.82311005]
[1742549417192,47.50965307,128.73,128.71,7.7727]
[1742549417386,47.50965307,128.73,128.7,0.04961005]
[1742549417997,47.50965307,128.73,128.7,7.82301005]
[1742549418699,47.50965307,128.73,128.71,7.773]
[1742549418902,39.73765307,128.73,128.71,7.773]
[1742549419201,11.99765307,128.73,128.71,7.773]
[1742549419401,19.76955307,128.73,128.7,7.82301005]
[1742549419597,11.99765307,128.73,128.7,7.82301005]
[1742549420495,7.7725,128.72,128.7,7.82301005]
[1742549423896,19.76985307,128.73,128.7,7.82301005]
[1742549424199,11.94460839,128.71,128.7,0.04961005]
[1742549424399,19.71770839,128.71,128.7,0.04961005]
[1742549424601,11.94460839,128.71,128.66,27.7]
[1742549424796,11.94460839,128.71,128.65,19.72090839]
[1742549425195,7.7755,128.68,128.65,19.72090839]
[1742549425390,11.94460839,128.71,128.65,19.72090839]
[1742549425601,7.7754,128.68,128.65,19.72090839]
[1742549425903,0.05527275,128.69,128.67,0.05953777]
[1742549427005,7.7749,128.68,128.67,0.05953777]
[1742549428303,7.82987275,128.69,128.67,19.77934616]
[1742549429206,7.7749,128.68,128.67,12.00414616]
[1742549429702,0.05527275,128.69,128.67,12.00414616]
[1742549429906,7.82987275,128.69,128.67,12.00414616]
[1742549430106,7.82987275,128.69,128.67,19.77964616]
[1742549432809,0.05527275,128.69,128.68,7.7749]
[1742549433015,0.05527275,128.69,128.68,19.71950839]
[1742549434609,7.7721,128.73,128.71,7.7728]
[1742549434814,7.7721,128.73,128.71,19.71740839]
[1742549435115,7.7725,128.72,128.71,11.94460839]
[1742549435309,7.7725,128.72,128.7,7.7733]
[1742549435815,7.82719094,128.72,128.7,7.82812088]
[1742549438009,0.05469094,128.72,128.71,7.7731]
[1742549438209,0.05469094,128.72,128.7,0.05482088]
[1742549438715,7.82739094,128.72,128.7,7.82812088]